bitfinex-derivatives/quotes_SOLF0:USTF0_20241230
["timestamp","ask_amount","ask_price","bid_price","bid_amount"]
[1735522326801,1.6053,193.73,193.64,2.5873]
[1735522327001,1.6053,193.73,193.6,4.04]
[1735522327200,2.5864,193.72,193.65,2.5871]
[1735522327502,1.6053,193.73,193.6,4.04]
[1735522327901,1.6053,193.73,193.62,20.44272497]
[1735522328103,1.6053,193.73,193.65,20.44272497]
[1735522328295,1.6053,193.73,193.7,2.5864]
[1735522328701,1.6053,193.73,193.66,4.04]
[1735522328898,1.5124,193.75,193.66,4.04]
[1735522329404,1.4834,193.79,193.66,4.04]
[1735522329807,2.5861,193.74,193.68,2.5868]
[1735522330099,20.44272497,193.77,193.66,4.04]
[1735522330297,1.5646,193.73,193.66,4.04]
[1735522330698,1.5646,193.73,193.58,20.44272497]
[1735522330902,2.5869,193.68,193.62,2.5876]
[1735522331299,1.5301,193.72,193.59,4.04]
[1735522331899,20.44272497,193.71,193.59,4.04]
[1735522332102,2.5874,193.64,193.59,2.588]
[1735522333307,4.1359,193.63,193.57,2.5882]
[1735522333810,2.5877,193.62,193.57,2.5882]
[1735522334104,1.5484,193.63,193.5,20.44272497]
[1735522334309,1.4658,193.62,193.54,2.5886]
[1735522334517,1.6124,193.61,193.54,2.5886]
[1735522334706,1.6124,193.61,193.5,2.5891]
[1735522334911,1.6124,193.61,193.48,2.95287775]
[1735522335605,1.6124,193.61,193.49,4.04]
[1735522336002,5.6524,193.61,193.44,20.44272497]
[1735522336208,20.44272497,193.59,193.45,4.04]
[1735522336409,2.5887,193.55,193.49,2.5892]
[1735522336600,20.44272497,193.59,193.45,4.04]
[1735522336804,5.6524,193.61,193.47,20.44272497]
[1735522337009,5.6524,193.61,193.56,2.5883]
[1735522337306,5.6524,193.61,193.47,20.44272497]
[1735522337307,1.6124,193.61,193.47,20.44272497]
[1735522338611,1.6124,193.61,193.47,24.48272497]
[1735522338803,20.44272497,193.59,193.47,4.04]
[1735522339112,2.5886,193.55,193.49,2.5892]
[1735522339410,20.44272497,193.59,193.47,4.04]
[1735522339805,2.5885,193.56,193.5,2.5892]
[1735522340106,2.5885,193.56,193.47,4.04]
[1735522340408,20.44272497,193.59,193.47,4.04]
[1735522340608,20.44272497,193.59,193.44,20.44272497]
[1735522340909,20.44272497,193.56,193.41,20.44272497]
[1735522341100,20.44272497,193.56,193.41,24.50272497]
[1735522341307,20.44272497,193.56,193.43,2.59]
[1735522341505,20.44272497,193.56,193.41,4.06]
[1735522341705,2.5884,193.56,193.41,24.50272497]
[1735522341902,4.06,193.58,193.41,24.50272497]
[1735522343304,20.44272497,193.56,193.41,24.50272497]
[1735522343506,20.44272497,193.56,193.41,20.44272497]
[1735522343712,2.5892,193.51,193.45,2.5899]
[1735522344313,2.5894,193.49,193.44,2.59]
[1735522344614,2.5894,193.49,193.4,4.06]
[1735522345605,2.5896,193.48,193.4,4.06]
[1735522345807,23.47002497,193.5,193.35,20.44272497]
[1735522346013,23.47002497,193.5,193.32,20.44272497]
[1735522346216,2.5901,193.44,193.38,2.5908]
[1735522346408,20.44272497,193.47,193.33,4.06]
[1735522346607,4.06,193.46,193.33,4.06]
[1735522346807,4.06,193.46,193.31,4.02]
[1735522347614,2.59,193.45,193.39,2.5907]
[1735522348212,2.59,193.44,193.39,2.5907]
[1735522348415,2.59,193.44,193.29,20.44272497]
[1735522348416,4.06,193.46,193.29,20.44272497]
[1735522348713,2.5902,193.43,193.36,2.5911]
[1735522348909,2.5902,193.43,193.3,4.02]
[1735522349316,4.06,193.46,193.3,4.02]
[1735522349517,20.44272497,193.44,193.26,20.44272497]
[1735522349713,20.44272497,193.44,193.24,112.32565986]
[1735522349714,1.5591,193.43,193.29,24.46272497]
[1735522350014,1.5591,193.43,193.39,2.5906]
[1735522350212,1.5591,193.43,193.29,24.46272497]
[1735522350604,2.5907,193.39,193.34,2.5913]
[1735522350815,1.5591,193.43,193.27,4.02]
[1735522351512,20.44272497,193.41,193.27,4.02]
[1735522351706,3.1639,193.4,193.27,4.02]
[1735522352413,3.1639,193.4,193.25,4.02]
[1735522352809,2.591,193.38,193.33,2.5914]
[1735522353308,3.1639,193.4,193.26,20.44272497]
[1735522353512,1.5591,193.43,193.32,20.44272497]
[1735522353714,1.5591,193.43,193.33,4.04]
[1735522355013,1.5103,193.46,193.33,4.04]
[1735522355213,3.0223,193.46,193.33,4.04]
[1735522355409,2.5899,193.45,193.4,2.5905]
[1735522355616,3.0223,193.46,193.4,2.5905]
[1735522356217,3.0223,193.46,193.33,4.04]
[1735522356614,2.59,193.45,193.33,4.04]
[1735522356818,3.0223,193.46,193.33,4.04]
[1735522357219,2.5902,193.43,193.38,2.5907]
[1735522358018,3.0223,193.46,193.33,4.04]
[1735522358222,2.5903,193.42,193.36,2.591]
[1735522358519,3.0223,193.46,193.33,4.04]
[1735522359515,3.0223,193.46,193.4,2.5905]
[1735522360522,2.59,193.44,193.4,2.5905]
[1735522360721,3.0223,193.46,193.38,2.5907]
[1735522361026,2.5909,193.38,193.29,4.04]
[1735522361518,20.44272497,193.45,193.29,24.48272497]
[1735522361723,3.0223,193.46,193.32,20.44272497]
[1735522361913,1.5103,193.46,193.35,20.44272497]
[1735522362119,4.04,193.52,193.38,20.44272497]
[1735522362519,3.059,193.54,193.41,20.44272497]
[1735522362718,3.059,193.54,193.44,20.44272497]
[1735522362719,1.6004,193.54,193.44,20.44272497]
[1735522362920,20.44272497,193.6,193.44,20.44272497]
[1735522363113,1.4671,193.59,193.43,4.04]
[1735522363314,20.44272497,193.57,193.43,4.04]
[1735522364323,20.44272497,193.54,193.43,4.04]
[1735522364523,20.44272497,193.54,193.38,4.04]
[1735522364716,1.4671,193.59,193.38,24.48272497]
[1735522364922,20.44272497,193.56,193.38,24.48272497]
[1735522365328,2.5891,193.51,193.46,2.5898]
[1735522365626,20.44272497,193.56,193.38,24.48272497]
[1735522365827,2.589,193.53,193.46,2.5896]
[1735522366027,20.44272497,193.56,193.46,2.5896]
[1735522366628,21.90982497,193.59,193.45,4.04]
[1735522367024,2.5887,193.54,193.45,4.04]
[1735522367329,21.90982497,193.59,193.49,2.5894]
[1735522367931,21.90982497,193.59,193.45,4.04]
[1735522368126,2.5886,193.56,193.45,4.04]
[1735522369230,2.5886,193.56,193.51,2.5891]
[1735522369617,21.90982497,193.59,193.48,20.44272497]
[1735522369618,1.4671,193.59,193.48,20.44272497]
[1735522369824,1.4671,193.59,193.51,2.5891]
[1735522370126,1.4671,193.59,193.52,4.02]
[1735522370327,1.4671,193.59,193.54,2.5887]
[1735522370629,1.4671,193.59,193.52,4.02]
[1735522370930,1.4671,193.59,193.49,4.02]
[1735522371136,1.4671,193.59,193.48,4.02]
[1735522371726,1.5983,193.61,193.48,4.02]
[1735522371928,3.0297,193.66,193.5,20.44272497]
[1735522372529,3.0297,193.66,193.51,4.02]
[1735522372827,2.5878,193.62,193.56,2.5883]
[1735522373424,2.5878,193.61,193.56,2.5883]
[1735522373627,3.0297,193.66,193.51,4.02]
[1735522373628,20.44272497,193.64,193.51,4.02]
[1735522373931,20.44272497,193.61,193.51,4.02]
[1735522374131,20.44272497,193.61,193.51,6.6091]
[1735522374328,20.44272497,193.61,193.51,4.02]
[1735522374829,20.44272497,193.64,193.51,4.02]
[1735522375024,2.5879,193.61,193.51,4.02]
[1735522375232,20.44272497,193.64,193.51,4.02]
[1735522377734,3.0297,193.66,193.51,4.02]
[1735522377935,3.0297,193.66,193.58,2.5881]
[1735522378536,2.5875,193.63,193.58,2.5881]
[1735522379233,2.5877,193.62,193.56,2.5883]
[1735522379437,20.44272497,193.64,193.52,3.98]
[1735522379826,20.44272497,193.61,193.52,3.98]
[1735522380239,2.5883,193.57,193.52,2.5888]
[1735522380537,20.44272497,193.61,193.49,3.98]
[1735522380732,2.5885,193.56,193.51,2.5891]
[1735522380928,20.44272497,193.58,193.41,74.26272497]
[1735522381135,21.94842497,193.55,193.41,74.26272497]
[1735522381428,2.5892,193.5,193.42,3.98]
[1735522381628,1.5057,193.55,193.42,3.98]
[1735522382439,4.0943,193.55,193.42,3.98]
[1735522382734,1.5057,193.55,193.42,3.98]
[1735522383434,1.5057,193.55,193.43,3.98]
[1735522383735,3.98,193.54,193.38,20.44272497]
[1735522383936,20.44272497,193.53,193.36,3.98]
[1735522384935,20.44272497,193.5,193.32,78.9484531]
[1735522385138,1.6015,193.49,193.36,3.98]
[1735522385528,1.5877,193.48,193.36,3.98]
[1735522385730,20.44272497,193.44,193.29,20.44272497]
[1735522385943,1.5412,193.43,193.29,24.42272497]
[1735522386233,1.5412,193.43,193.33,2.5915]
[1735522386440,20.44272497,193.41,193.29,3.98]
[1735522386738,1.6015,193.4,193.29,3.98]
[1735522386933,2.591,193.37,193.32,2.5916]
[1735522387130,1.5877,193.39,193.29,3.98]
[1735522387337,1.5877,193.39,193.37,2.5909]
[1735522387642,1.5877,193.39,193.29,24.42272497]
[1735522388033,1.5877,193.39,193.34,2.5914]
[1735522388733,1.5877,193.39,193.37,2.591]
[1735522388930,1.5877,193.39,193.29,24.42272497]
[1735522389633,4.1785,193.39,193.34,2.5914]
[1735522389841,1.5412,193.43,193.29,24.42272497]
[1735522391039,1.5412,193.43,193.29,20.44272497]
[1735522391240,1.5412,193.43,193.28,3.98]
[1735522391745,20.44272497,193.41,193.28,3.98]
[1735522391951,5.4666,193.4,193.28,3.98]
[1735522392355,2.5908,193.38,193.32,2.5915]
[1735522392756,1.5069,193.39,193.28,3.98]
[1735522392954,1.5069,193.39,193.29,20.44272497]
[1735522393452,2.591,193.37,193.32,2.5916]
[1735522393652,2.591,193.37,193.26,20.44272497]
[1735522393857,2.591,193.37,193.26,24.42272497]
[1735522394047,1.5069,193.39,193.26,24.42272497]
[1735522395954,1.5412,193.43,193.29,20.44272497]
[1735522396158,1.5412,193.43,193.32,20.44272497]
[1735522396354,1.5412,193.43,193.32,24.42272497]
[1735522397257,1.5412,193.43,193.32,3.98]
[1735522398156,2.5903,193.42,193.37,2.591]
[1735522398459,1.5412,193.43,193.32,3.98]
[1735522398861,3.1115,193.49,193.35,20.44272497]
[1735522399058,1.4743,193.48,193.35,20.44272497]
[1735522399249,1.4743,193.48,193.45,2.5899]
[1735522399453,20.44272497,193.53,193.39,3.98]
[1735522399650,2.9497,193.54,193.39,3.98]
[1735522400059,2.9497,193.54,193.48,2.5895]
[1735522400060,2.5889,193.53,193.48,2.5895]
[1735522400260,2.5889,193.53,193.39,3.98]
[1735522400261,2.9497,193.54,193.41,20.44272497]
[1735522400555,2.9497,193.54,193.44,2.5899]
[1735522400756,2.9497,193.54,193.45,3.98]
[1735522401356,1.4754,193.54,193.43,3.98]
[1735522401557,1.5708,193.57,193.54,2.5887]
[1735522401756,20.44272497,193.61,193.54,2.5887]
[1735522402558,8.5005,193.63,193.51,3.98]
[1735522402761,4.5205,193.63,193.51,3.98]
[1735522402961,4.5205,193.63,193.59,2.588]
[1735522403157,2.9497,193.63,193.59,2.588]
[1735522403361,2.9497,193.63,193.51,3.98]
[1735522403559,20.44272497,193.67,193.51,3.98]
[1735522404264,20.44272497,193.67,193.53,20.44272497]
[1735522406064,20.44272497,193.67,193.51,3.98]
[1735522406659,3.1867,193.68,193.53,20.44272497]
[1735522407056,20.44272497,193.73,193.56,20.44272497]
[1735522407260,24.51884156,193.74,193.59,20.44272497]
[1735522407961,24.51884156,193.74,193.68,2.5868]
[1735522408265,3.068,193.74,193.64,3.8]
[1735522408457,3.068,193.74,193.62,20.44272497]
[1735522408458,3.068,193.74,193.65,3.8]
[1735522409359,5.6541,193.74,193.65,3.8]
[1735522409562,3.068,193.74,193.59,20.44272497]
[1735522409758,3.068,193.74,193.62,2.5875]
[1735522409759,2.5869,193.68,193.62,2.5875]
[1735522409959,2.5869,193.68,193.45,5.1796]
[1735522409960,20.44272497,193.7,193.58,3.8]
[1735522410163,20.44272497,193.7,193.55,3.8]
[1735522410561,20.44272497,193.7,193.59,2.588]
[1735522410764,20.44272497,193.7,193.55,3.8]
[1735522411266,20.44272497,193.73,193.56,20.44272497]
[1735522411466,3.068,193.74,193.59,20.44272497]
[1735522411667,3.068,193.74,193.68,2.5868]
[1735522413372,3.068,193.74,193.63,3.8]
[1735522413867,3.068,193.74,193.69,2.5866]
[1735522414061,3.068,193.74,193.63,3.8]
[1735522414866,20.44272497,193.73,193.63,3.8]
[1735522415063,2.5867,193.69,193.63,3.8]
[1735522415263,2.5867,193.69,193.62,2.5875]
[1735522415467,3.8,193.71,193.62,2.5875]
[1735522415876,2.5869,193.68,193.62,2.5875]
[1735522416368,3.8,193.71,193.59,3.8]
[1735522416763,3.068,193.74,193.59,24.24272497]
[1735522417168,2.5862,193.73,193.68,2.5868]
[1735522417360,2.5862,193.73,193.59,24.24272497]
[1735522418867,2.5863,193.72,193.66,2.587]
[1735522419763,3.068,193.74,193.44,5.1799]
[1735522419966,20.44272497,193.72,193.45,3.8]
[1735522420169,20.44272497,193.72,193.53,20.44272497]
[1735522420365,20.44272497,193.72,193.54,3.8]
[1735522421572,2.5872,193.66,193.6,2.5879]
[1735522421966,2.5872,193.66,193.54,3.8]
[1735522421967,24.24272497,193.69,193.54,3.8]
[1735522422173,24.24272497,193.69,193.53,20.44272497]
[1735522422174,1.5544,193.65,193.53,3.8]
[1735522422366,2.5878,193.61,193.52,3.8]
[1735522422679,24.24272497,193.63,193.49,3.8]
[1735522422873,2.5882,193.59,193.53,2.5888]
[1735522423173,24.24272497,193.63,193.48,3.8]
[1735522423369,2.5885,193.56,193.51,2.5891]
[1735522423572,24.24272497,193.63,193.47,3.8]
[1735522423573,20.44272497,193.6,193.47,3.8]
[1735522424069,20.44272497,193.6,193.51,2.5891]
[1735522424070,2.5885,193.56,193.51,2.5891]
[1735522424273,24.24272497,193.63,193.47,3.8]
[1735522424671,2.588,193.59,193.47,3.8]
[1735522424975,24.24272497,193.63,193.47,3.8]
[1735522425566,3.1474,193.64,193.49,20.44272497]
[1735522426070,1.554,193.64,193.61,2.5877]
[1735522426466,1.554,193.64,193.56,3.8]
[1735522426673,1.5544,193.65,193.56,3.8]
[1735522427073,1.5544,193.65,193.54,3.8]
[1735522427276,4.1417,193.65,193.59,2.588]
[1735522429176,1.5544,193.65,193.53,3.8]
[1735522429573,1.5544,193.65,193.6,2.5879]
[1735522430079,1.5544,193.65,193.53,3.8]
[1735522430277,4.1417,193.65,193.59,2.5879]
[1735522430685,1.5544,193.65,193.61,2.5877]
[1735522430882,1.5832,193.68,193.6,3.8]
[1735522431683,1.5412,193.7,193.6,3.8]
[1735522432480,1.5259,193.77,193.61,20.44272497]
[1735522432682,1.5259,193.77,193.64,20.44272497]
[1735522433580,2.5858,193.76,193.7,2.5865]
[1735522435486,1.5259,193.77,193.72,2.5863]
[1735522435788,1.5259,193.77,193.66,3.8]
[1735522436482,4.1116,193.77,193.71,2.5864]
[1735522436786,1.5259,193.77,193.66,3.8]
[1735522437982,1.5259,193.77,193.67,2.5868]
[1735522438183,1.5259,193.77,193.65,3.72]
[1735522438981,2.586,193.75,193.69,2.5867]
[1735522439888,2.586,193.74,193.69,2.5867]
[1735522440289,2.586,193.74,193.65,3.72]
[1735522440290,1.5259,193.77,193.65,3.72]
[1735522440490,2.585,193.82,193.69,20.44272497]
[1735522440682,24.57604156,193.84,193.69,20.44272497]
[1735522440983,27.16074156,193.84,193.78,2.5854]
[1735522441189,24.57604156,193.84,193.74,3.72]
[1735522441388,24.57604156,193.84,193.75,3.72]
[1735522441584,21.45084156,193.89,193.75,3.72]
[1735522441987,21.45084156,193.89,193.77,20.44272497]
[1735522442780,21.45084156,193.89,193.8,20.44272497]
[1735522442986,21.45084156,193.89,193.88,2.5842]
[1735522443489,1.5998,193.93,193.87,2.5843]
[1735522443790,1.5998,193.93,193.81,3.72]
[1735522443991,1.5998,193.93,193.85,2.5845]
[1735522444200,1.5998,193.93,193.81,3.72]
[1735522444395,2.5842,193.88,193.81,3.72]
[1735522444583,1.5998,193.93,193.83,2.5848]
[1735522444889,2.5846,193.85,193.81,3.72]
[1735522445090,20.44272497,193.91,193.81,3.72]
[1735522445490,20.44272497,193.91,193.77,3.72]
[1735522446191,2.5845,193.86,193.79,2.5853]
[1735522446591,20.44272497,193.91,193.74,20.44272497]
[1735522446795,1.5654,193.85,193.75,3.72]
[1735522446997,2.5848,193.83,193.77,2.5855]
[1735522447296,2.5848,193.83,193.75,3.72]
[1735522447495,1.5654,193.85,193.79,2.5853]
[1735522447496,4.1501,193.85,193.79,2.5853]
[1735522447692,1.5654,193.85,193.75,3.72]
[1735522448898,4.15,193.85,193.75,3.72]
[1735522449401,2.5849,193.83,193.76,2.5856]
[1735522449705,1.5993,193.84,193.74,3.72]
[1735522449905,4.184,193.84,193.78,2.5855]
[1735522450103,1.5993,193.84,193.74,3.72]
[1735522451101,2.585,193.82,193.77,2.5856]
[1735522451305,1.5993,193.84,193.74,3.72]
[1735522451495,1.5654,193.85,193.74,24.16272497]
[1735522451695,1.5634,193.89,193.74,24.16272497]
[1735522452500,2.5843,193.87,193.74,24.16272497]
[1735522452900,2.5843,193.87,193.77,2.5855]
[1735522453100,2.5843,193.87,193.74,24.16272497]
[1735522453504,2.5843,193.87,193.82,2.585]
[1735522454005,2.5843,193.87,193.74,24.16272497]
[1735522454006,2.5846,193.85,193.78,2.5854]
[1735522454206,1.5634,193.89,193.74,24.16272497]
[1735522455397,2.5844,193.86,193.81,2.585]
[1735522456105,2.5843,193.88,193.82,2.5849]
[1735522456305,1.5634,193.89,193.82,2.5849]
[1735522456506,1.5634,193.89,193.74,24.16272497]
[1735522456906,2.5847,193.84,193.79,2.5853]
[1735522457301,3.72,193.86,193.73,3.72]
[1735522457503,20.44272497,193.82,193.69,58.39503678]
[1735522457702,3.0221,193.81,193.67,3.72]
[1735522458207,2.5859,193.75,193.71,2.5864]
[1735522458407,5.2408,193.8,193.67,3.72]
[1735522459001,1.5208,193.8,193.67,3.72]
[1735522459316,1.5382,193.81,193.71,20.44272497]
[1735522459605,2.5844,193.86,193.71,20.44272497]
[1735522459910,4.5429,193.87,193.71,20.44272497]
[1735522461306,2.5847,193.84,193.79,2.5853]
[1735522461503,4.5429,193.87,193.75,3.72]
[1735522461706,2.5849,193.83,193.77,2.5855]
[1735522461899,2.5849,193.83,193.75,3.72]
[1735522462100,4.5429,193.87,193.75,3.72]
[1735522462309,4.5429,193.87,193.75,6.3058]
[1735522462606,4.5429,193.87,193.58,6.99916129]
[1735522462607,20.44272497,193.82,193.65,20.44272497]
[1735522462805,3.72,193.81,193.64,3.72]
[1735522463401,2.5856,193.78,193.73,2.5861]
[1735522463606,24.16272497,193.82,193.66,20.44272497]
[1735522464008,20.44272497,193.85,193.69,20.44272497]
[1735522464209,20.44272497,193.85,193.61,61.88638544]
[1735522464210,8.2629,193.87,193.72,20.44272497]
[1735522464411,8.2629,193.87,193.73,3.72]
[1735522465911,8.2629,193.87,193.69,3.6]
[1735522466114,20.44272497,193.82,193.69,3.6]
[1735522466616,3.6,193.81,193.67,3.6]
[1735522469415,2.5854,193.79,193.74,2.586]
[1735522469616,2.5854,193.79,193.67,3.6]
[1735522470115,2.5854,193.79,193.73,2.586]
[1735522471119,20.44272497,193.82,193.67,3.6]
[1735522471317,25.05084156,193.86,193.7,20.44272497]
[1735522471511,21.45084156,193.86,193.7,20.44272497]
[1735522471715,2.5847,193.85,193.7,20.44272497]
[1735522472420,4.5429,193.87,193.74,20.44272497]
[1735522472618,3.059,193.87,193.75,3.6]
[1735522473016,3.059,193.87,193.77,20.44272497]
[1735522473624,1.5589,193.92,193.77,20.44272497]
[1735522474120,2.5841,193.89,193.83,2.5848]
[1735522474316,22.00162497,193.92,193.75,3.6]
[1735522474716,22.00162497,193.92,193.77,20.44272497]
[1735522474917,2.584,193.9,193.81,2.585]
[1735522475220,22.00162497,193.92,193.77,20.44272497]
[1735522476523,2.5839,193.9,193.77,20.44272497]
[1735522477218,21.45084156,193.96,193.8,20.44272497]
[1735522477424,21.45084156,193.96,193.84,20.44272497]
[1735522477619,21.45084156,193.96,193.85,3.6]
[1735522477819,2.5833,193.95,193.85,3.6]
[1735522478023,20.44272497,193.95,193.85,3.6]
[1735522478524,2.5837,193.92,193.86,2.5844]
[1735522478826,20.44272497,193.95,193.78,20.44272497]
[1735522479126,20.44272497,193.95,193.79,3.6]
[1735522479722,20.44272497,193.95,193.87,2.5842]
[1735522479723,2.5835,193.93,193.87,2.5842]
[1735522479924,3.6,193.96,193.79,3.6]
[1735522480123,2.5839,193.91,193.86,2.5844]
[1735522480724,20.44272497,193.92,193.75,20.44272497]
[1735522480926,20.44272497,193.89,193.69,27.99664516]
[1735522481125,4.6807,193.88,193.71,20.44272497]
[1735522481517,4.6807,193.88,193.74,20.44272497]
[1735522482125,2.5843,193.87,193.78,2.5855]
[1735522482327,4.6807,193.88,193.73,3.6]
[1735522483027,2.5847,193.84,193.79,2.5853]
[1735522483227,4.6807,193.88,193.73,3.6]
[1735522483424,4.6807,193.88,193.72,3.6]
[1735522483425,20.44272497,193.86,193.72,3.6]
[1735522483630,20.44272497,193.83,193.71,3.6]
[1735522483825,24.04272497,193.83,193.7,3.6]
[1735522484724,2.5857,193.77,193.71,2.5863]
[1735522484932,2.5857,193.77,193.7,3.6]
[1735522485119,2.5853,193.8,193.7,3.6]
[1735522485319,24.04272497,193.83,193.7,3.6]
[1735522485519,3.0357,193.79,193.7,3.6]
[1735522485819,21.45084156,193.86,193.71,20.44272497]
[1735522486024,3.0357,193.85,193.71,20.44272497]
[1735522486426,3.0357,193.85,193.81,2.585]
[1735522486622,3.0357,193.85,193.77,3.6]
[1735522486829,3.0357,193.85,193.78,3.6]
[1735522487824,3.0357,193.85,193.8,2.5852]
[1735522488028,3.0357,193.85,193.78,3.6]
[1735522491835,3.0357,193.85,193.74,20.44272497]
[1735522492035,3.0357,193.85,193.75,3.6]
[1735522492237,3.0357,193.85,193.76,3.6]
[1735522492435,5.6203,193.85,193.8,2.5852]
[1735522492827,3.0357,193.85,193.77,3.6]
[1735522493033,2.5847,193.84,193.79,2.5853]
[1735522493534,3.0357,193.85,193.77,3.6]
[1735522494438,2.5849,193.83,193.78,2.5855]
[1735522494832,3.0357,193.85,193.77,3.6]
[1735522495033,2.5855,193.78,193.73,3.6]
[1735522495233,20.44272497,193.84,193.73,3.6]
[1735522495533,3.0357,193.85,193.73,3.6]
[1735522496538,3.0357,193.85,193.74,20.44272497]
[1735522497539,2.5841,193.89,193.74,20.44272497]
[1735522498034,2.5841,193.89,193.84,2.5847]
[1735522498341,2.5839,193.9,193.81,3.64]
[1735522498535,2.5839,193.9,193.82,3.64]
[1735522499438,2.5839,193.9,193.85,2.5845]
[1735522500038,2.5841,193.89,193.85,2.5845]
[1735522500945,1.5029,193.93,193.83,2.5848]
[1735522501136,20.44272497,193.91,193.81,3.64]
[1735522501537,20.44272497,193.88,193.81,3.64]
[1735522502333,1.5029,193.93,193.81,3.64]
[1735522502334,12.80676806,193.92,193.81,3.64]
[1735522502742,12.80676806,193.86,193.73,12.80676806]
[1735522502942,12.80676806,193.86,193.73,16.44676806]
[1735522503145,1.523,193.85,193.73,16.44676806]
[1735522503443,2.5852,193.81,193.76,2.5856]
[1735522503638,1.523,193.85,193.76,2.5856]
[1735522503844,1.523,193.85,193.64,81.71664516]
[1735522503845,12.80676806,193.83,193.74,6.2259]
[1735522504439,12.80676806,193.83,193.74,3.64]
[1735522505239,12.80676806,193.83,193.7,12.80676806]
[1735522505439,2.586,193.74,193.71,3.64]
[1735522505742,12.80676806,193.8,193.69,3.64]
[1735522506146,2.5855,193.78,193.69,3.64]
[1735522506846,2.5855,193.78,193.73,2.5861]
[1735522507047,12.80676806,193.83,193.7,12.80676806]
[1735522507344,12.80676806,193.83,193.76,2.5856]
[1735522507749,12.80676806,193.83,193.7,12.80676806]
[1735522508237,12.80676806,193.8,193.71,3.64]
[1735522508436,12.80676806,193.77,193.68,3.64]
[1735522509342,12.80676806,193.8,193.68,3.64]
[1735522510447,12.80676806,193.8,193.7,12.80676806]
[1735522510742,2.5855,193.78,193.73,2.5862]
[1735522511448,2.5854,193.79,193.74,2.586]
[1735522512042,12.80676806,193.8,193.76,2.5856]
[1735522512247,12.80676806,193.8,193.7,12.80676806]
[1735522512248,1.6111,193.84,193.74,3.64]
[1735522513446,2.5851,193.81,193.76,2.5858]
[1735522515640,2.5851,193.81,193.73,3.64]
[1735522515845,2.5851,193.81,193.77,2.5856]
[1735522516543,1.6111,193.84,193.7,3.64]
[1735522516544,20.50100735,193.83,193.7,3.64]
[1735522516951,2.5856,193.78,193.72,2.5862]
[1735522517151,20.50100735,193.79,193.61,51.44853795]
[1735522517350,3.64,193.81,193.62,3.64]
[1735522517351,20.50100735,193.76,193.62,3.64]
[1735522517553,3.0578,193.75,193.62,3.64]
[1735522518150,3.0578,193.75,193.64,20.50100735]
[1735522518347,3.0578,193.75,193.71,2.5863]
[1735522518654,3.0578,193.75,193.69,3.64]
[1735522519148,1.5183,193.78,193.69,3.64]
[1735522519448,24.55044156,193.81,193.69,3.64]
[1735522519657,3.0996,193.81,193.69,3.64]
[1735522519951,3.0996,193.81,193.7,20.50100735]
[1735522520147,21.45084156,193.85,193.7,20.50100735]
[1735522520353,21.45084156,193.85,193.76,20.50100735]
[1735522520553,21.45084156,193.85,193.77,3.64]
[1735522520854,26.15824156,193.89,193.77,3.64]
[1735522521251,21.45084156,193.89,193.87,2.5842]
[1735522521548,21.45084156,193.89,193.85,3.64]
[1735522521747,21.45084156,193.89,193.79,20.50100735]
[1735522521748,21.45084156,193.89,193.83,3.64]
[1735522521952,3.1425,193.94,193.83,3.64]
[1735522522354,3.1425,193.94,193.79,20.50100735]
[1735522522355,2.584,193.9,193.82,3.64]
[1735522523455,2.584,193.9,193.84,2.5846]
[1735522523656,2.584,193.89,193.82,3.64]